{"text_format":"1","workbook":"xlsx","n_sheets":11,"sheets":["ВПА_Застава_СТ","ППА","ППА_порука","ППА_застава","Журнал торгів","queries","deal","colls","guar","legalwork","deal_doc"],"not_rendered":{"charts":0,"images":1,"macros":1,"external_links":0,"defined_names":5,"comments":0,"pivot_tables":0},"unopened":[],"bounds":{"document_bytes":16777216,"sheet_cells":100000,"rows_first":2000,"rows_last":500,"rows_between":2000,"halvings":0,"cell_chars":16384,"cell_head_chars":4096},"cells_cut":0,"cells_raw":0,"read":"whole","date_system":"1900"}

{"sheet":"ВПА_Застава_СТ","index":0,"n_rows":124,"n_cols":2,"rows_kept":124,"cut":false,"hidden":true,"merged":[[27,0,33,1],[0,0,0,1],[5,0,5,1],[6,0,12,1],[21,0,21,1],[26,0,26,1],[111,0,117,1],[42,0,42,1],[47,0,47,1],[48,0,54,1],[63,0,63,1],[68,0,68,1],[69,0,75,1],[84,0,84,1],[89,0,89,1],[90,0,96,1],[105,0,105,1],[110,0,110,1]]}
["7. Інформація про заставу***"]
["Наявність застави (так / ні)",{"$f":"deal!$AA$2","v":"так"}]
["Діє мораторій на стягнення майна (так / ні)",{"$f":"colls!$C$3","v":"Ні"}]
["Номер договору застави",{"$f":"colls!$D$3","v":3296358}]
["Тип застави*",{"$f":"colls!$E$3","v":"Земельні ділянки"}]
["Детальний опис застави*"]
[{"$f":"colls!$F$3","v":"Земельна ділянка; ІВАНО-ФРАНКІВСЬКА ОБЛ., ТИСМЕНИЦЬКИЙ РАЙОН/М.ТИСМЕНИЦЯ, С.ЧУКАЛІВКА (0,2414+0,2403 га)"}]
[]
[]
[]
[]
[]
[]
["Застава реалізована (так / ні)"]
["Заставу прийнято на баланс банку (так / ні)"]
["Вартість застави на момент видачі кредиту, грн"]
["Дата останньої перевірки предмета застави*",{"$f":"IF(colls!$G$3=\"\",\"\",colls!$G$3)","v":"2015-05-25"}]
["Дата останньої оцінки",{"$f":"IF(colls!$H$3=\"\",\"\",colls!$H$3)","v":"2016-02-03"}]
["Оцінка вартості застави, грн",{"$f":"colls!$I$3","v":934006}]
[]
[]
["7. Інформація про заставу***"]
["Наявність застави (так / ні)",{"$f":"deal!$AA$2","v":"так"}]
["Діє мораторій на стягнення майна (так / ні)",{"$f":"IF(colls!$C$4=\"\",\"\",colls!$C$4)","v":""}]
["Номер договору застави",{"$f":"IF(colls!$D$4=\"\",\"\",colls!$D$4)","v":""}]
["Тип застави*",{"$f":"IF(colls!$E$4=\"\",\"\",colls!$E$4)","v":""}]
["Детальний опис застави*"]
[{"$f":"IF(colls!$F$4=\"\",\"\",colls!$F$4)","v":""}]
[]
[]
[]
[]
[]
[]
["Застава реалізована (так / ні)"]
["Заставу прийнято на баланс банку (так / ні)"]
["Вартість застави на момент видачі кредиту, грн"]
["Дата останньої перевірки предмета застави*",{"$f":"IF(colls!$G$4=\"\",\"\",colls!$G$4)","v":""}]
["Дата останньої оцінки",{"$f":"IF(colls!$H$4=\"\",\"\",colls!$H$4)","v":""}]
["Оцінка вартості застави, грн",{"$f":"IF(colls!$I$4=\"\",\"\",colls!$I$4)","v":""}]
[]
[]
["7. Інформація про заставу***"]
["Наявність застави (так / ні)",{"$f":"deal!$AA$2","v":"так"}]
["Діє мораторій на стягнення майна (так / ні)",{"$f":"IF(colls!$C$5=\"\",\"\",colls!$C$5)","v":""}]
["Номер договору застави",{"$f":"IF(colls!$D$5=\"\",\"\",colls!$D$5)","v":""}]
["Тип застави*",{"$f":"IF(colls!$E$5=\"\",\"\",colls!$E$5)","v":""}]
["Детальний опис застави*"]
[{"$f":"IF(colls!$F$5=\"\",\"\",colls!$F$5)","v":""}]
[]
[]
[]
[]
[]
[]
["Застава реалізована (так / ні)"]
["Заставу прийнято на баланс банку (так / ні)"]
["Вартість застави на момент видачі кредиту, грн"]
["Дата останньої перевірки предмета застави*",{"$f":"IF(colls!$G$5=\"\",\"\",colls!$G$5)","v":""}]
["Дата останньої оцінки",{"$f":"IF(colls!$H$5=\"\",\"\",colls!$H$5)","v":""}]
["Оцінка вартості застави, грн",{"$f":"IF(colls!$I$5=\"\",\"\",colls!$I$5)","v":""}]
[]
[]
["7. Інформація про заставу***"]
["Наявність застави (так / ні)",{"$f":"deal!$AA$2","v":"так"}]
["Діє мораторій на стягнення майна (так / ні)",{"$f":"IF(colls!$C$6=\"\",\"\",colls!$C$6)","v":""}]
["Номер договору застави",{"$f":"IF(colls!$D$6=\"\",\"\",colls!$D$6)","v":""}]
["Тип застави*",{"$f":"IF(colls!$E$6=\"\",\"\",colls!$E$6)","v":""}]
["Детальний опис застави*"]
[{"$f":"IF(colls!$F$6=\"\",\"\",colls!$F$6)","v":""}]
[]
[]
[]
[]
[]
[]
["Застава реалізована (так / ні)"]
["Заставу прийнято на баланс банку (так / ні)"]
["Вартість застави на момент видачі кредиту, грн"]
["Дата останньої перевірки предмета застави*",{"$f":"IF(colls!$G$6=\"\",\"\",colls!$G$6)","v":""}]
["Дата останньої оцінки",{"$f":"IF(colls!$H$6=\"\",\"\",colls!$H$6)","v":""}]
["Оцінка вартості застави, грн",{"$f":"IF(colls!$I$6=\"\",\"\",colls!$I$6)","v":""}]
[]
[]
["7. Інформація про заставу***"]
["Наявність застави (так / ні)",{"$f":"deal!$AA$2","v":"так"}]
["Діє мораторій на стягнення майна (так / ні)",{"$f":"IF(colls!$C$7=\"\",\"\",colls!$C$7)","v":""}]
["Номер договору застави",{"$f":"IF(colls!$D$7=\"\",\"\",colls!$D$7)","v":""}]
["Тип застави*",{"$f":"IF(colls!$E$7=\"\",\"\",colls!$E$7)","v":""}]
["Детальний опис застави*"]
[{"$f":"IF(colls!$F$7=\"\",\"\",colls!$F$7)","v":""}]
[]
[]
[]
[]
[]
[]
["Застава реалізована (так / ні)"]
["Заставу прийнято на баланс банку (так / ні)"]
["Вартість застави на момент видачі кредиту, грн"]
["Дата останньої перевірки предмета застави*",{"$f":"IF(colls!$G$7=\"\",\"\",colls!$G$7)","v":""}]
["Дата останньої оцінки",{"$f":"IF(colls!$H$7=\"\",\"\",colls!$H$7)","v":""}]
["Оцінка вартості застави, грн",{"$f":"IF(colls!$I$7=\"\",\"\",colls!$I$7)","v":""}]
[]
[]
["7. Інформація про заставу***"]
["Наявність застави (так / ні)",{"$f":"deal!$AA$2","v":"так"}]
["Діє мораторій на стягнення майна (так / ні)",{"$f":"IF(colls!$C$8=\"\",\"\",colls!$C$8)","v":""}]
["Номер договору застави",{"$f":"IF(colls!$D$8=\"\",\"\",colls!$D$8)","v":""}]
["Тип застави*",{"$f":"IF(colls!$E$8=\"\",\"\",colls!$E$8)","v":""}]
["Детальний опис застави*"]
[{"$f":"IF(colls!$F$8=\"\",\"\",colls!$F$8)","v":""}]
[]
[]
[]
[]
[]
[]
["Застава реалізована (так / ні)"]
["Заставу прийнято на баланс банку (так / ні)"]
["Вартість застави на момент видачі кредиту, грн"]
["Дата останньої перевірки предмета застави*",{"$f":"IF(colls!$G$8=\"\",\"\",colls!$G$8)","v":""}]
["Дата останньої оцінки",{"$f":"IF(colls!$H$8=\"\",\"\",colls!$H$8)","v":""}]
["Оцінка вартості застави, грн",{"$f":"IF(colls!$I$8=\"\",\"\",colls!$I$8)","v":""}]

{"sheet":"ППА","index":1,"n_rows":27,"n_cols":8,"rows_kept":27,"cut":false,"hidden":false,"merged":[[22,6,22,7],[23,6,23,7],[19,3,19,4],[25,3,26,3],[25,4,26,4],[23,3,23,4],[0,0,0,7],[4,0,4,1],[4,6,4,7],[6,6,6,7],[7,6,21,7],[19,0,19,1],[4,3,4,4],[10,3,10,4],[6,4,7,4],[6,3,7,3],[11,3,15,4]]}
["Публічний паспорт активу (права вимоги фізичних осіб – індивідуальні позичальники)"]
[]
["Дата формування","2017-03-01"]
[]
["1. Інформація про кредит ",null,null,"3. Інформація про заставу",null,null,"6. Претензійно-позовна робота та примусове стягнення"]
["Назва банку","ПУАТ «ФІДОБАНК»",null,"Наявність застави (так / ні)","Так",null,"Поточна стадія претензійно-позовної роботи","судове провадження"]
["МФО банку","300175",null,"Діє закон про мораторій на стягнення майна (так / ні)","Ні",null,"Опис претензійно-позовної роботи"]
["Номер кредитного договору","014/0321/44/1448",null,null,null,null," Детальну інформацію буде надано після підписання договору про нерозголошення конфіденційної інформації"]
["Дата отримання кредиту","2007-03-06",null,"Номер договору застави","014/0321/44/1448"]
["Дата погашення кредиту","2017-03-03",null,"Тип застави","Домоволодіння та земельна ділянка "]
["Валюта кредиту",980,null,"Опис застави"]
["Сума видачі (у валюті кредиту)",500000,null,"Домоволодіння   за адресою: Івано-Франківська обл., Тисменицький район, с.Чукалівка, вул. Довбуша.\nДомоволодіння за за адресою: Івано-Франківська обл., Тисменицький район, с.Чукалівка, вул. Довбуша.\nДомоволодіння з за адресою: Івано-Франківська обл., Тисменицький район, с.Чукалівка, вул. Довбуша."]
["Ставка відсотків",12.5]
["Ставка комісій",""]
["Тип кредитного продукту","Заставний"]
["Цільове призначення","Придбання земельних ділянок"]
["Регіон видачі (область)","Івано-Франківська область",null,"Застава реалізована (так / ні)","Ні"]
["Зона АТО або Крим","Інше",null,"Вартість застави на момент видачі кредиту, грн",3200000]
[]
["2. Залишок заборгованості на дату формування",null,null,"4. Інформація про поручителя"]
["Загальний залишок заборгованості (без штрафів та пені), грн ",9023350.5099999998,null,"Наявність поручителя (так / ні)","так"]
["Залишок по тілу кредиту, грн",8650851.3900000006,null,"Вид поруки (майнова / фінансова)","фінансова"]
["Залишок по процентам, грн",372499.12]
["Залишок по комісіям, грн",0,null,"5. Додаткова інформація",null,null,"7. Оцінка вартості кредиту"]
["Залишок по пеням і штрафам, грн",0,null,"Смерть боржника (так / ні)","ні",null,"Назва компанії оцінщика","ТОВ «Верітас Проперті Менеджмент»"]
["Залишок заборгованості у валюті кредиту (без штрафів та пені)",9023350.5099999998,null,"Інша інформація та примітки","1. 22.12.2015 р. проведено реструктуризацію шляхом зміни валюти кредитування з доларів США на гривню. \n2. Відсутні оригінали Кредитного договору та Додаткових договорів до КД №1-5 \n3. Відсутній оригінал Додаткової угоди до Договору іпотеки від 25.04.2016р. ",null,"Дата оцінки вартості кредиту","2016-11-01"]
["Дата останнього платежу","2016-04-29",null,null,null,null,"Оціночна вартість кредиту, грн",1990822.15]

{"sheet":"ППА_порука","index":2,"n_rows":3,"n_cols":6,"rows_kept":3,"cut":false,"hidden":false,"merged":[]}
["4. Інформація про поручителя","Поручитель 1","Поручитель 2","Поручитель 3","Поручитель 4","Поручитель 5"]
["Наявність поручителя (так / ні)","так","Ні","Ні","Ні","Ні"]
["Вид поруки (майнова / фінансова)","фінансова","","","",""]

{"sheet":"ППА_застава","index":3,"n_rows":8,"n_cols":8,"rows_kept":8,"cut":false,"hidden":false,"merged":[]}
["3. Інформація про заставу","Застава 1","Застава 2","Застава 3","Застава 4","Застава 5","Застава 6","Застава 7"]
["Наявність застави (так / ні)","так","так","так","ні","ні","ні","Ні"]
["Діє закон про мораторій на стягнення майна (так / ні)","Ні","Ні","Ні","","","",""]
["Номер договору застави","014/0321/44/1448","014/0321/44/1448","014/0321/44/1448","","","",""]
["Тип застави","Домоволодіння та земельна ділянка ","Домоволодіння та земельна ділянка ","Домоволодіння та земельна ділянка ","","","",""]
["Опис застави","Домоволодіння загальною площею за адресою: Івано-Франківська обл., Тисменицький район, с.Чукалівка, вул. Довбуша.","Домоволодіння загальною площею за адресою: Івано-Франківська обл., Тисменицький район, с.Чукалівка, вул. Довбуша.","Домоволодіння загальною площею за адресою: Івано-Франківська обл., Тисменицький район, с.Чукалівка, вул. Довбуша.","","","",""]
["Застава реалізована (так / ні)","Ні","Ні","Ні","Ні","Ні","Ні",""]
["Вартість застави на момент видачі кредиту, грн",529904,531187,533151,0,0,0,""]

{"sheet":"Журнал торгів","index":4,"n_rows":2,"n_cols":6,"rows_kept":2,"cut":false,"hidden":false,"merged":[[0,0,0,5]]}
["Журнал торгів"]
["№","Дата проведення","Торгуюча організація","Початкова вартість, грн","Ціна продажу, грн","Коментар"]

{"sheet":"queries","index":5,"n_rows":6,"n_cols":2,"rows_kept":6,"cut":false,"hidden":true,"merged":[]}
["FIDO_HD.deals","select * from risk.risk_viw_deal_passport t where t.deal_b2_id=$deal_id$"]
["FIDO_HD.colls","select * from risk.risk_viw_coll_passport t where t.DEAL_B2_ID=$deal_id$"]
["FIDO_HD.guar","select * from risk.risk_viw_guar_passport t where t.DEAL_B2_ID=$deal_id$"]
["FIDO_HD.legalwork","select * from risk.risk_viw_passport_legalwork_ag t where t.DEAL_B2_ID=$deal_id$"]
["FIDO_HD.log","insert into risk.risk_passport_request_log(deal_b2_id, user_login) values($deal_id$,'$user_login$')"]
["FIDO_HD.deal_docs","select * from risk.risk_viw_passport_deal_doc t where t.DEAL_B2_ID=$deal_id$"]

{"sheet":"deal","index":6,"n_rows":2,"n_cols":42,"rows_kept":2,"cut":false,"hidden":true,"merged":[]}
["DEAL_B2_ID","DEAL_ID","ARCDATE","1","2","3","4","5","6","7","8","10","11","12","13","15","16","17","18","19","20","33","34","35","36","37","41","52","EST_COMPANY_NAME","EST_AMOUNT","EST_DATE","REST_AMOUNT_EST","REST_AMOUNT_LIQ","LIQ_AMOUNT","LIQ_DATE","LAST_PAYM_DATE","LAST_PAYM_AMOUNT","CURR_YEAR_PAYM_AMOUNT","PREV_YEAR_PAYM_AMOUNT","PAYM_AMOUNT_TOTAL","FEE_RATE","NBU_COLL"]
[3293346,9059956,"2017-02-01","ПУАТ «ФІДОБАНК»","300175",".014/0321/44/1448","2007-03-06","2017-03-03",840,500000,12.5,"Заставний","Іпотека","Івано-Франківська область","Інше",8981877.6999999993,8650851.3900000006,331026.31,0,0,8981877.6999999993,215,"Басараб Сергій Михайлович","2568816210","обл. Івано-Франківська, м.Івано-Франківськ, вул.Шевченка, буд.101, кв. 4","обл. Івано-Франківська, м.Івано-Франківськ, вул.Шевченка, буд.101, кв. 4","так","так","ТОВ «Верітас Проперті Менеджмент»",1990822.15,"2016-11-01",8855498.9600000009,8855498.9600000009,1990822.15,"2016-11-01","2016-04-29",48,0,132,1609817.11,0,"Ні"]

{"sheet":"colls","index":7,"n_rows":3,"n_cols":14,"rows_kept":3,"cut":false,"hidden":true,"merged":[]}
["DEAL_ID","DEAL_B2_ID","42","43","44","45","49","50","51","COLL_DEAL_ID","COLL_DEAL_B2_ID","ARCDATE","DEAL_NO","SIMPLE_CODE"]
[9059956,3293346,"Ні",3296821,"Нерухоме майно, що належить до житлового фонду","Житловий будинок; ІВАНО-ФРАНКІВСЬКА ОБЛ., ТИСМЕНИЦЬКИЙ РАЙОН/М.ТИСМЕНИЦЯ, ЧУКАЛІВСЬКА/С.ЧУКАЛІВКА, ЧУКАЛІВКА, вул. Довбуша, 111, 113,114, (197 кв.м./197,2 кв.м./198,3 кв.м.)","2014-05-12","2016-04-25",3275306.19,9067265,3296821,"2017-02-01",".014/0321/44/1448",".014/0321/44/1448_3296821"]
[9059956,3293346,"Ні",3296358,"Земельні ділянки","Земельна ділянка; ІВАНО-ФРАНКІВСЬКА ОБЛ., ТИСМЕНИЦЬКИЙ РАЙОН/М.ТИСМЕНИЦЯ, С.ЧУКАЛІВКА (0,2414+0,2403 га)","2015-05-25","2016-02-03",934006,9066168,3296358,"2017-02-01",".014/0321/44/1448",".014/0321/44/1448_3296358"]

{"sheet":"guar","index":8,"n_rows":2,"n_cols":15,"rows_kept":2,"cut":false,"hidden":true,"merged":[]}
["DEAL_ID","DEAL_B2_ID","COLL_DEAL_ID","COLL_DEAL_B2_ID","43","45","53","54","55","56","57","58","59","ARCDATE","SIMPLE_CODE"]
[9059956,3293346,9066939,3296701,3296701,"Договір поручительства Фізично","Прості гарантії інших клієнтів","Басараб Людмила Андріївна","1796105522","Івано-Франківська обл.,Калуський р-н,Калуш,Січових Стрільців ,17,,34","Івано-Франківська обл.,Калуський р-н,Калуш,Січових Стрільців ,17,,34",null,null,"2017-02-01",".014/0321/44/1448_3296701"]

{"sheet":"legalwork","index":9,"n_rows":2,"n_cols":15,"rows_kept":2,"cut":false,"hidden":true,"merged":[]}
["ARCDATE","DEAL_ID","DEAL_B2_ID","DEAL_NO","COLL_DEAL_ID","COLL_DEAL_B2_ID","LIMITATION_PERIOD_DATE","CUR_STAGE","STAGE_DESC","LEGAL_OPINION","PRE_TRIAL_AGR_FLAG","PRE_TRIAL_AGR_DESC","INTERNAL_DRS_WORK","EXTERNAL_DRS_WORK","SIMPLE_CODE"]
["2017-02-01 00:00:00 | 2017-02-01 00:00:00 | 2017-02-01 00:00:00 | 2017-02-01 00:00:00 | 2017-02-01 00:00:00 | 2017-02-01 00:00:00","9059956 | 9059956 | 9059956 | 9059956 | 9059956 | 9059956",3293346,".014/0321/44/1448 | .014/0321/44/1448 | .014/0321/44/1448 | .014/0321/44/1448 | .014/0321/44/1448 | .014/0321/44/1448","9066168 | 9066168 | 9066939 | 9066939 | 9067265 | 9067265","3296358 | 3296358 | 3296701 | 3296701 | 3296821 | 3296821","3296358: 03.03.2020 | 3296358: 03.03.2020 | 3296701: 03.03.2020 | 3296701: 03.03.2020 | 3296821: 03.03.2020 | 3296821: 03.03.2020","3296358: Не було подачі в суд | 3296358: Справа в суді | 3296701: Не було подачі в суд | 3296701: Справа в суді | 3296821: Не було подачі в суд | 3296821: Справа в суді","3296358: Рішення набрало законної сили | 3296358: Рішення набрало законної сили | 3296701: Рішення про стягнення заборгованості набрало законної сили | 3296701: Рішення про стягнення заборгованості набрало законної сили | 3296821: Рішення набрало законної сили | 3296821: Рішення набрало законної сили","3296358: середній | 3296358: середній | 3296701: середній | 3296701: середній | 3296821: середній | 3296821: середній","3296358: так | 3296358: так | 3296701: так | 3296701: так | 3296821: так | 3296821: так","3296358: Відомості відсутні | 3296358: Відомості відсутні | 3296701: Відомості відсутні | 3296701: Відомості відсутні | 3296821: Відомості відсутні | 3296821: Відомості відсутні","3296358: так | 3296358: так | 3296701: так | 3296701: так | 3296821: так | 3296821: так","3296358: відсутня | 3296358: відсутня | 3296701: відсутня | 3296701: відсутня | 3296821: відсутня | 3296821: відсутня",".014/0321/44/1448_3296358 | .014/0321/44/1448_3296358 | .014/0321/44/1448_3296701 | .014/0321/44/1448_3296701 | .014/0321/44/1448_3296821 | .014/0321/44/1448_3296821"]

{"sheet":"deal_doc","index":10,"n_rows":4,"n_cols":8,"rows_kept":4,"cut":false,"hidden":true,"merged":[]}
["DEAL_B2_ID","DEAL_ID","CREDIT_CONTRACT","COLL_CONTRACT","GUARANTEE_CONTRACT","SPOUSE_AGR","CREDIT_STATEMENT","BORROWERS_PERMIT"]
[3293346,9059956,"так",null,"так","ні","так","так"]
[3293346,9059956,"так",null,"так","ні","так","так"]
[3293346,9059956,"так",null,"так","ні","так","так"]